fUST/lending_fUST_20240218
["ID","MTS","AMOUNT","RATE_DAILY","PERIOD"]
[314381939,1708249841859,-500.0,0.00028219,2]
[314381940,1708249841868,-500.0,0.00028219,2]
[314381941,1708249841877,-500.0,0.00028219,2]
[314381942,1708249841886,-500.0,0.00028219,2]
[314381943,1708249841897,-639.73,0.00028219,2]
[314381944,1708249841906,-750.74,0.00028219,2]
[314381945,1708249841915,-4884.9,0.00028219,2]
[314381947,1708249841924,-320.82364073,0.00028219,2]
[314381948,1708249841933,-151.0,0.00028219,2]
[314381949,1708249841942,-500.0,0.00028219,2]
[314381950,1708249841951,-4338.04,0.00028219,2]
[314381951,1708249841959,-987.86,0.00028219,2]
[314381952,1708249841969,-531.57,0.00028219,2]
[314381953,1708249841979,-500.0,0.00028219,2]
[314381954,1708249841988,-624.13,0.00028219,2]
[314381955,1708249841997,-519.4,0.00028219,2]
[314381956,1708249842006,-694.78,0.00028219,2]
[314381957,1708249842015,-500.0,0.00028219,2]
[314381958,1708249842024,-869.15,0.00028219,2]
[314381959,1708249842033,-500.0,0.00028219,2]
[314381960,1708249842043,-500.0,0.00028219,2]
[314381961,1708249842052,-5729.11,0.00028219,2]
[314381962,1708249842062,-808.84,0.00028219,2]
[314381963,1708249842071,-1079.97,0.00028219,2]
[314381964,1708249842080,-925.301034,0.00028219,2]
[314381965,1708249842089,-925.301034,0.00028219,2]
[314381966,1708249842098,-151.0,0.00028219,2]
[314381967,1708249842108,-945.13,0.00028219,2]
[314381968,1708249842117,-6787.97,0.00028219,2]
[314381969,1708249842126,-538.991574,0.00028219,2]
[314381970,1708249842136,-538.991574,0.00028219,2]
[314381971,1708249842146,-500.0,0.00028219,2]
[314381972,1708249842155,-500.0,0.00028219,2]
[314381973,1708249842163,-2509.35,0.00028219,2]
[314381974,1708249842174,-887.69,0.00028219,2]
[314381975,1708249842183,-3492.66,0.00028219,2]
[314381976,1708249842192,-500.0,0.00028219,2]
[314381977,1708249842201,-6030.68,0.00028219,2]
[314381978,1708249842211,-1062.72,0.00028219,2]
[314381979,1708249842220,-494.50498766,0.00028297,2]
[314381980,1708249842230,-50000.0,0.00028428,5]
[314381981,1708249842239,-925.301034,0.00028428,2]
[314381982,1708249842249,-925.301034,0.00028428,2]
[314381983,1708249842259,-151.0,0.00028428,2]
[314381984,1708249842268,-538.991574,0.00028428,2]
[314381985,1708249842278,-538.991574,0.00028428,2]
[314381986,1708249842287,-199.052227,0.00028492,2]
[314381987,1708249842297,-199.052227,0.00028492,2]
[314381988,1708249842306,-151.0,0.00028492,2]
[314381989,1708249842315,-3616.89,0.00028492,2]
[314381990,1708249842325,-3616.89,0.00028492,2]
[314381991,1708249842334,-285.34624526,0.00028492,2]
[314381992,1708249842345,-613.54943699,0.00028492,2]
[314381993,1708249842355,-500.0,0.00028492,2]
[314381994,1708249842364,-500.0,0.00028492,2]
[314381995,1708249842375,-500.0,0.00028492,2]
[314381996,1708249842385,-500.0,0.00028492,2]
[314381997,1708249842394,-500.0,0.00028492,2]
[314381998,1708249842404,-500.0,0.00028492,2]
[314381999,1708249842413,-500.0,0.00028492,2]
[314382000,1708249842424,-286.36451332,0.00028492,2]
[314382001,1708249842434,-500.0,0.00028492,2]
[314382002,1708249842443,-500.0,0.00028492,2]
[314382003,1708249842454,-500.0,0.00028492,2]
[314382004,1708249842463,-500.0,0.00028492,2]
[314382005,1708249842473,-208.5588087,0.00028492,2]
[314382006,1708249842482,-500.0,0.00028492,2]
[314382007,1708249842492,-500.0,0.00028493,2]
[314382008,1708249842501,-502.19323529,0.00028493,2]
[314382009,1708249842511,-151.0,0.00028493,2]
[314382010,1708249842520,-151.0,0.00028493,2]
[314382011,1708249842529,-546.62,0.00028493,2]
[314382012,1708249842539,-155.142369,0.00028493,2]
[314382013,1708249842548,-500.0,0.00028493,2]
[314382014,1708249842557,-500.0,0.00028493,2]
[314382015,1708249842566,-519.16773641,0.00028493,2]
[314382016,1708249842576,-500.0,0.00028493,2]
[314382017,1708249842585,-500.0,0.00028493,2]
[314382018,1708249842594,-500.0,0.00028493,2]
[314382019,1708249842604,-639.92,0.00028493,2]
[314382020,1708249842614,-500.0,0.00028493,2]
[314382021,1708249842623,-500.0,0.00028493,2]
[314382022,1708249842632,-500.0,0.00028493,2]
[314382023,1708249842641,-500.0,0.00028493,2]
[314382024,1708249842650,-500.0,0.00028493,2]
[314382025,1708249842659,-500.0,0.00028493,2]
[314382026,1708249842668,-199.052227,0.00028493,2]
[314382027,1708249842679,-199.052227,0.00028493,2]
[314382028,1708249842688,-639.73,0.00028493,2]
[314382029,1708249842697,-750.74,0.00028493,2]
[314382030,1708249842706,-4884.9,0.00028493,2]
[314382031,1708249842715,-500.0,0.00028493,2]
[314382032,1708249842724,-4338.04,0.00028493,2]
[314382033,1708249842733,-987.86,0.00028493,2]
[314382034,1708249842742,-531.57,0.00028493,2]
[314382035,1708249842751,-500.0,0.00028493,2]
[314382036,1708249842760,-624.13,0.00028493,2]
[314382037,1708249842769,-519.4,0.00028493,2]
[314382038,1708249842778,-694.78,0.00028493,2]
[314382039,1708249842787,-500.0,0.00028493,2]
[314382040,1708249842796,-869.15,0.00028493,2]
[314382041,1708249842806,-500.0,0.00028493,2]
[314382042,1708249842818,-500.0,0.00028493,2]
[314382043,1708249842828,-5729.11,0.00028493,2]
[314382044,1708249842839,-808.84,0.00028493,2]
[314382045,1708249842850,-1079.97,0.00028493,2]
[314382047,1708249842859,-925.301034,0.00028493,2]
[314382049,1708249842868,-925.301034,0.00028493,2]
[314382051,1708249842877,-151.0,0.00028493,2]
[314382053,1708249842886,-945.13,0.00028493,2]
[314382054,1708249842896,-6787.97,0.00028493,2]
[314382055,1708249842905,-538.991574,0.00028493,2]
[314382056,1708249842915,-538.991574,0.00028493,2]
[314382057,1708249842925,-500.0,0.00028493,2]
[314382058,1708249842935,-500.0,0.00028493,2]
[314382059,1708249842944,-2509.35,0.00028493,2]
[314382060,1708249842953,-887.69,0.00028493,2]
[314382061,1708249842962,-3492.66,0.00028493,2]
[314382062,1708249842972,-500.0,0.00028493,2]
[314382063,1708249842982,-6030.68,0.00028493,2]
[314382064,1708249842991,-1062.72,0.00028493,2]
[314382065,1708249843000,-300.0,0.00028684,2]
[314382066,1708249843010,-494.50498766,0.00028749,2]
[314382067,1708249843019,-161.252891,0.00028766,2]
[314382068,1708249843028,-3616.89,0.00028766,2]
[314382069,1708249843037,-500.29871377,0.00028767,2]
[314382070,1708249843046,-151.0,0.00028767,2]
[314382071,1708249843066,-217.563834,0.00028767,2]
[314382072,1708249843079,-546.62,0.00028767,2]
[314382074,1708249843088,-500.0,0.00028767,2]
[314382075,1708249843098,-253.87529067,0.00028767,2]
[314382076,1708249843107,-500.0,0.00028767,2]
[314382077,1708249843116,-500.0,0.00028767,2]
[314382078,1708249843126,-500.0,0.00028767,2]
[314382079,1708249843135,-639.92,0.00028767,2]
[314382081,1708249843144,-500.0,0.00028767,2]
[314382083,1708249843154,-500.0,0.00028767,2]
[314382084,1708249843164,-500.0,0.00028767,2]
[314382087,1708249843174,-500.0,0.00028767,2]
[314382088,1708249843184,-500.0,0.00028767,2]
[314382089,1708249843193,-500.0,0.00028767,2]
[314382091,1708249843202,-199.052227,0.00028767,2]
[314382093,1708249843211,-199.052227,0.00028767,2]
[314382094,1708249843221,-639.73,0.00028767,2]
[314382095,1708249843230,-750.74,0.00028767,2]
[314382097,1708249843240,-4884.9,0.00028767,2]
[314382098,1708249843249,-500.0,0.00028767,2]
[314382100,1708249843259,-155.0,0.00028767,2]
[314382101,1708249843269,-4338.04,0.00028767,2]
[314382102,1708249843278,-987.86,0.00028767,2]
[314382103,1708249843287,-531.57,0.00028767,2]
[314382104,1708249843296,-500.0,0.00028767,2]
[314382105,1708249843306,-624.13,0.00028767,2]
[314382106,1708249843315,-519.4,0.00028767,2]
[314382107,1708249843325,-694.78,0.00028767,2]
[314382108,1708249843335,-500.0,0.00028767,2]
[314382109,1708249843344,-869.15,0.00028767,2]
[314382110,1708249843354,-500.0,0.00028767,2]
[314382111,1708249843363,-500.0,0.00028767,2]
[314382112,1708249843372,-5729.11,0.00028767,2]
[314382113,1708249843382,-808.84,0.00028767,2]
[314382114,1708249843391,-1079.97,0.00028767,2]
[314382115,1708249843400,-925.301034,0.00028767,2]
[314382116,1708249843410,-925.301034,0.00028767,2]
[314382117,1708249843419,-151.0,0.00028767,2]
[314382118,1708249843429,-945.13,0.00028767,2]
[314382119,1708249843440,-6787.97,0.00028767,2]
[314382120,1708249843449,-538.991574,0.00028767,2]
[314382121,1708249843458,-538.991574,0.00028767,2]
[314382122,1708249843468,-500.0,0.00028767,2]
[314382123,1708249843477,-601.70924849,0.00028767,2]
[314382124,1708249843487,-2509.35,0.00028767,2]
[314382126,1708249843593,-887.69,0.00028767,2]
[314382127,1708249843603,-3492.66,0.00028767,2]
[314382128,1708249843613,-500.0,0.00028767,2]
[314382129,1708249843622,-6030.68,0.00028767,2]
[314382130,1708249843631,-1062.72,0.00028767,2]
[314382131,1708249843641,-224.8,0.000288,4]
[314382132,1708249843651,-224.801,0.000288,4]
[314382133,1708249843661,-224.8,0.000288,4]
[314382134,1708249843670,-224.8,0.000288,4]
[314382135,1708249843681,-224.8,0.000288,4]
[314382136,1708249843691,-11655.70070114,0.00028941,2]
[314382138,1708249843700,-3616.89,0.00028952,2]
[314382140,1708249843710,-5000.0,0.00028953,5]
[314382142,1708249843720,-1000.0,0.00029,29]
[314382145,1708249843728,-3616.89,0.0002904,2]
[314382147,1708249843738,-3616.89,0.0002904,2]
[314382149,1708249843747,-3616.89,0.0002904,2]
[314382150,1708249843756,-3616.89,0.0002904,2]
[314382151,1708249843765,-3617.09,0.0002904,2]
[314382152,1708249843774,-151.0,0.00029041,2]
[314382153,1708249843783,-546.62,0.00029041,2]
[314382154,1708249843792,-500.0,0.00029041,2]
[314382155,1708249843801,-500.0,0.00029041,2]
[314382156,1708249843814,-500.0,0.00029041,2]
[314382157,1708249843823,-500.0,0.00029041,2]
[314382158,1708249843832,-639.92,0.00029041,2]
[314382159,1708249843841,-522.95147879,0.00029041,2]
[314382160,1708249843850,-500.0,0.00029041,2]
[314382161,1708249843859,-500.0,0.00029041,2]
[314382162,1708249843869,-500.0,0.00029041,2]
[314382163,1708249843878,-500.0,0.00029041,2]
[314382164,1708249843888,-500.0,0.00029041,2]
[314382165,1708249843898,-199.052227,0.00029041,2]
[314382166,1708249843908,-199.052227,0.00029041,2]
[314382167,1708249843917,-639.73,0.00029041,2]
[314382168,1708249843927,-750.74,0.00029041,2]
[314382169,1708249843936,-4884.9,0.00029041,2]
[314382170,1708249843945,-500.0,0.00029041,2]
[314382171,1708249843954,-4338.04,0.00029041,2]
[314382172,1708249843965,-987.86,0.00029041,2]
[314382173,1708249843974,-531.57,0.00029041,2]
[314382174,1708249843985,-500.0,0.00029041,2]
[314382175,1708249843994,-624.13,0.00029041,2]
[314382176,1708249844003,-519.4,0.00029041,2]
[314382177,1708249844012,-694.78,0.00029041,2]
[314382178,1708249844022,-500.0,0.00029041,2]
[314382179,1708249844031,-869.15,0.00029041,2]
[314382180,1708249844040,-500.0,0.00029041,2]
[314382181,1708249844049,-500.0,0.00029041,2]
[314382182,1708249844058,-5729.11,0.00029041,2]
[314382183,1708249844067,-808.84,0.00029041,2]
[314382184,1708249844077,-1079.97,0.00029041,2]
[314382185,1708249844086,-925.301034,0.00029041,2]
[314382186,1708249844096,-925.301034,0.00029041,2]
[314382187,1708249844105,-226.57964,0.00029041,2]
[314382188,1708249844114,-945.13,0.00029041,2]
[314382189,1708249844123,-6787.97,0.00029041,2]
[314382190,1708249844132,-538.991574,0.00029041,2]
[314382191,1708249844141,-538.991574,0.00029041,2]
[314382192,1708249844151,-500.0,0.00029041,2]
[314382193,1708249844160,-2509.35,0.00029041,2]
[314382194,1708249844169,-887.69,0.00029041,2]
[314382195,1708249844178,-3492.66,0.00029041,2]
[314382196,1708249844187,-500.0,0.00029041,2]
[314382197,1708249844197,-6030.68,0.00029041,2]
[314382198,1708249844206,-1062.72,0.00029041,2]
[314382199,1708249844215,-300.0,0.00029149,2]
[314382200,1708249844224,-494.50498766,0.00029202,2]
[314382201,1708249844232,-620.00277851,0.00029226,2]
[314382202,1708249844241,-199.052227,0.00029261,2]
[314382203,1708249844251,-199.052227,0.00029261,2]
[314382204,1708249844260,-151.0,0.000293,2]
[314382205,1708249844269,-2000.0,0.000293,2]
[314382206,1708249844278,-3054.323274,0.0002931,2]
[314382207,1708249844287,-546.62,0.00029315,2]
[314382208,1708249844296,-500.0,0.00029315,2]
[314382209,1708249844306,-500.0,0.00029315,2]
[314382210,1708249844315,-500.0,0.00029315,2]
[314382211,1708249844324,-500.0,0.00029315,2]
[314382212,1708249844333,-639.92,0.00029315,2]
[314382213,1708249844343,-500.0,0.00029315,2]
[314382214,1708249844352,-500.0,0.00029315,2]
[314382215,1708249844361,-578.69198446,0.00029315,2]
[314382216,1708249844370,-500.0,0.00029315,2]
[314382217,1708249844380,-500.0,0.00029315,2]
[314382218,1708249844389,-199.052227,0.00029315,2]
[314382219,1708249844398,-199.052227,0.00029315,2]
[314382220,1708249844408,-639.73,0.00029315,2]
[314382221,1708249844417,-750.74,0.00029315,2]
[314382222,1708249844427,-4884.9,0.00029315,2]
[314382223,1708249844436,-500.0,0.00029315,2]
[314382224,1708249844446,-4338.04,0.00029315,2]
[314382225,1708249844456,-987.86,0.00029315,2]
[314382226,1708249844465,-531.57,0.00029315,2]
[314382227,1708249844474,-500.0,0.00029315,2]
[314382228,1708249844483,-624.13,0.00029315,2]
[314382229,1708249844493,-519.4,0.00029315,2]
[314382230,1708249844502,-694.78,0.00029315,2]
[314382231,1708249844511,-500.0,0.00029315,2]
[314382232,1708249844520,-869.15,0.00029315,2]
[314382233,1708249844530,-500.0,0.00029315,2]
[314382234,1708249844539,-500.0,0.00029315,2]
[314382235,1708249844549,-5729.11,0.00029315,2]
[314382236,1708249844558,-808.84,0.00029315,2]
[314382237,1708249844567,-1079.97,0.00029315,2]
[314382238,1708249844576,-925.301034,0.00029315,2]
[314382239,1708249844586,-925.301036,0.00029315,2]
[314382240,1708249844595,-945.13,0.00029315,2]
[314382241,1708249844604,-6787.97,0.00029315,2]
[314382242,1708249844613,-538.991574,0.00029315,2]
[314382243,1708249844622,-538.991574,0.00029315,2]
[314382244,1708249844631,-500.0,0.00029315,2]
[314382245,1708249844640,-2509.35,0.00029315,2]
[314382246,1708249844650,-887.69,0.00029315,2]
[314382247,1708249844659,-3492.66,0.00029315,2]
[314382248,1708249844668,-500.0,0.00029315,2]
[314382249,1708249844679,-6030.68,0.00029315,2]
[314382250,1708249844688,-1062.72,0.00029315,2]
[314382251,1708249844697,-151.0,0.000294,2]
[314382252,1708249844706,-820.791,0.000294,4]
[314382253,1708249844715,-820.792,0.000294,4]
[314382254,1708249844724,-820.792,0.000294,4]
[314382255,1708249844733,-820.792,0.000294,4]
[314382256,1708249844743,-820.792,0.000294,4]
[314382257,1708249844752,-200.0,0.000294,4]
[314382258,1708249844761,-1000.0,0.00029489,7]
[314382259,1708249844770,-2908.91814448,0.00029504,2]
[314382260,1708249844780,-295.07240764,0.00029587,2]
[314382261,1708249844789,-286.52848395,0.00029587,2]
[314382262,1708249844798,-151.0,0.00029589,2]
[314382263,1708249844808,-546.62,0.00029589,2]
[314382264,1708249844819,-500.0,0.00029589,2]
[314382265,1708249844829,-500.0,0.00029589,2]
[314382266,1708249844838,-500.0,0.00029589,2]
[314382267,1708249844847,-500.0,0.00029589,2]
[314382268,1708249844857,-639.92,0.00029589,2]
[314382269,1708249844866,-500.0,0.00029589,2]
[314382270,1708249844876,-500.0,0.00029589,2]
[314382271,1708249844885,-500.0,0.00029589,2]
[314382272,1708249844895,-500.0,0.00029589,2]
[314382273,1708249844904,-639.73,0.00029589,2]
[314382274,1708249844913,-750.74,0.00029589,2]
[314382275,1708249844922,-4884.9,0.00029589,2]
[314382276,1708249844932,-500.0,0.00029589,2]
[314382277,1708249844941,-4338.04,0.00029589,2]
[314382278,1708249844950,-987.86,0.00029589,2]
[314382279,1708249844959,-531.57,0.00029589,2]
[314382280,1708249844968,-500.0,0.00029589,2]
[314382281,1708249844977,-624.13,0.00029589,2]
[314382282,1708249844986,-519.4,0.00029589,2]
[314382283,1708249844994,-694.78,0.00029589,2]
[314382284,1708249845004,-500.0,0.00029589,2]
[314382285,1708249845013,-869.15,0.00029589,2]
[314382286,1708249845022,-500.0,0.00029589,2]
[314382287,1708249845031,-500.0,0.00029589,2]
[314382288,1708249845040,-808.84,0.00029589,2]
[314382289,1708249845050,-5729.11,0.00029589,2]
[314382290,1708249845059,-1079.97,0.00029589,2]
[314382291,1708249845068,-945.13,0.00029589,2]
[314382292,1708249845077,-6787.97,0.00029589,2]
[314382293,1708249845086,-500.0,0.00029589,2]
[314382294,1708249845095,-2509.35,0.00029589,2]
[314382295,1708249845165,-887.69,0.00029589,2]
[314382296,1708249845175,-3492.66,0.00029589,2]
[314382297,1708249845184,-500.0,0.00029589,2]
[314382298,1708249845203,-6030.68,0.00029589,2]
[314382299,1708249845214,-1062.72,0.00029589,2]
[314382300,1708249845224,-300.0,0.00029615,2]
[314382301,1708249845234,-494.50498766,0.00029654,2]
[314382302,1708249845244,-151.0,0.00029863,2]
[314382303,1708249845253,-546.62,0.00029863,2]
[314382304,1708249845263,-415.81772748,0.00029863,2]
[314382305,1708249845274,-72.3529806,0.00029863,2]
[314382306,1708249845302,-427.6470194,0.00029863,2]
[314382307,1708249845312,-500.0,0.00029863,2]
[314382308,1708249845321,-500.0,0.00029863,2]
[314382309,1708249845331,-639.92,0.00029863,2]
[314382310,1708249845340,-500.0,0.00029863,2]
[314382311,1708249845349,-500.0,0.00029863,2]
[314382312,1708249845359,-500.0,0.00029863,2]
[314382313,1708249845371,-500.0,0.00029863,2]
[314382314,1708249845380,-639.73,0.00029863,2]
[314382315,1708249845390,-750.74,0.00029863,2]
[314382316,1708249845399,-4884.9,0.00029863,2]
[314382317,1708249845409,-573.24770073,0.00029863,2]
[314382318,1708249845418,-4338.04,0.00029863,2]
[314382319,1708249845428,-987.86,0.00029863,2]
[314382320,1708249845437,-531.57,0.00029863,2]
[314382321,1708249845447,-500.0,0.00029863,2]
[314382322,1708249845457,-624.13,0.00029863,2]
[314382323,1708249845466,-519.4,0.00029863,2]
[314382324,1708249845476,-694.78,0.00029863,2]
[314382325,1708249845485,-500.0,0.00029863,2]
[314382326,1708249845495,-869.15,0.00029863,2]
[314382327,1708249845504,-500.0,0.00029863,2]
[314382328,1708249845514,-500.0,0.00029863,2]
[314382329,1708249845523,-5729.11,0.00029863,2]
[314382330,1708249845533,-808.84,0.00029863,2]
[314382331,1708249845542,-1079.97,0.00029863,2]
[314382332,1708249845551,-945.13,0.00029863,2]
[314382333,1708249845561,-6787.97,0.00029863,2]
[314382334,1708249845570,-500.0,0.00029863,2]
[314382335,1708249845579,-2509.35,0.00029863,2]
[314382336,1708249845589,-887.69,0.00029863,2]
[314382337,1708249845598,-3492.66,0.00029863,2]
[314382338,1708249845608,-500.0,0.00029863,2]
[314382339,1708249845617,-6030.68,0.00029863,2]
[314382340,1708249845627,-1062.72,0.00029863,2]
[314382341,1708249845636,-10013.21252538,0.000299,2]
[314382342,1708249845645,-10055.56500111,0.00029928,2]
[314382343,1708249845655,-273.55227487,0.00029998,2]
[314382344,1708249845664,-261.999172,0.00029998,2]
[314382345,1708249845674,-177.71078925,0.00029998,2]
[314382346,1708249845684,-5236.2753162,0.00029998,2]
[314382347,1708249845696,-508.95100054,0.00029998,2]
[314382348,1708249845706,-155.47313809,0.00029998,2]
[314382349,1708249845716,-158.67084224,0.00029998,2]
[314382350,1708249845725,-151.0,0.00029999,2]
[314382351,1708249845734,-4249.38420413,0.0003,5]
[314382352,1708249845772,-2783.83,0.00028418,3]
[314382353,1708249845782,-6415.74320003,0.0003,5]
[314382354,1708249845791,-3968.20736393,0.0003,5]
[314382355,1708249845803,-4847.57215782,0.0003,5]
[314382356,1708249845817,-7699.21293494,0.0003,5]
[314382357,1708249845829,-8239.53357952,0.0003,5]
[314382358,1708249845840,-8219.70797669,0.0003,5]
[314382359,1708249845864,-16912.18861527,0.0003,5]
[314382366,1708249848055,-156.05011263,0.00028491,2]
[314382367,1708249848066,-925.37077086,0.00028491,2]
[314382368,1708249848076,-894.42,0.0002999,3]
[314382369,1708249848085,-33703.37412051,0.0003,5]
[314382386,1708250803208,151.54242888,0.00018407,2]
[314383364,1708251042831,-269.8146331,0.00020537,2]
[314383365,1708251042841,-209.35627282,0.00020689,2]
[314383367,1708251042851,-521.0,0.00020689,2]
[314383368,1708251042860,-258.33133698,0.0002069,2]
[314383369,1708251042870,-261.53905327,0.00020691,2]
[314383371,1708251042879,-270.68436015,0.00020692,2]
[314383390,1708251046883,-498.17969485,0.00020692,2]
[314383391,1708251046892,-1.82030515,0.00020807,2]
[314383392,1708251046903,-923.55046571,0.00020807,2]
[314383393,1708251046913,-161.0995351,0.00020817,2]
[314383394,1708251046923,-302.30629028,0.00020819,2]
[314383395,1708251046932,-2265.5194549,0.0002092,2]
[314383396,1708251046942,-3919.2333571,0.00021,2]
[314383397,1708251046954,-170.668628,0.00021169,2]
[314383398,1708251046964,-250.0,0.00021643,2]
[314383399,1708251046974,-765.11445577,0.00022588,5]
[314383401,1708251046982,-155.01085076,0.00022589,2]
[314383402,1708251046991,-5515.65868276,0.0002259,2]
[314383403,1708251047000,-11519.99369464,0.00022806,2]
[314383405,1708251385907,2567.0,0.00023,10]
[314383419,1708252232000,-212.9635654,0.00019867,2]
[314383421,1708252232009,-925.37077086,0.00019867,2]
[314383423,1708252232019,-261.53905327,0.00019868,2]
[314383425,1708252232029,-585.34046848,0.00019869,2]
[314383427,1708252232038,-384.432027,0.00019883,2]
[314383428,1708252232047,-250.0,0.00020005,2]
[314383430,1708252232057,-24900.0,0.00020146,2]
[314383432,1708252232066,-169.599211,0.00020438,2]
[314383434,1708252232076,-155.01395126,0.00020674,2]
[314383437,1708252232085,-521.0,0.00020698,2]
[314383438,1708252232095,-2925.35798336,0.00020706,2]
[314383440,1708252232104,-397.95323928,0.00021885,2]
[314383442,1708252232113,-168.352908,0.00021946,2]
[314383444,1708252232123,-327.0028268,0.00022,2]
[314383446,1708252232132,-2112.04675744,0.00023,2]
[314383448,1708252232141,-531.59636198,0.00023,2]
[314383451,1708252232150,-536.47106127,0.00024462,2]
[314383453,1708252232159,-155.01085076,0.00024466,2]
[314383454,1708252232169,-305.2146525,0.00024658,2]
[314383456,1708252232178,-7417.65678579,0.00025,2]
[314383459,1708252232188,-506.7114074,0.00025,2]
[314383461,1708252232197,-63648.82409561,0.00025,2]
[314383464,1708252232218,-990.43599571,0.00025,2]
[314383466,1708252232229,-1939.04774695,0.00025,2]
[314383726,1708252238133,-2860.45546306,0.00025,2]
[314383727,1708252238145,-2209.86790146,0.00025,2]
[314383728,1708252238156,-4159.21129003,0.00025,2]
[314383729,1708252238168,-8912.98777558,0.00025,2]
[314383731,1708252238177,-155.31725601,0.00025197,2]
[314383732,1708252238187,-392.58073794,0.00025297,2]
[314383734,1708252238196,-620.00551566,0.00025309,2]
[314383745,1708252238291,-200.0,0.00025479,2]
[314383747,1708252238306,-2925.35798336,0.00025706,2]
[314383749,1708252238315,-620.00027578,0.00026575,2]
[314383751,1708252238325,-5243.26253441,0.00026867,2]
[314383753,1708252238334,-3396.46,0.00026886,3]
[314383755,1708252238343,-500.0,0.00026892,2]
[314383757,1708252238352,-500.0,0.00026892,2]
[314383759,1708252238362,-500.0,0.00026892,2]
[314383761,1708252238371,-500.0,0.00026892,2]
[314383763,1708252238380,-500.0,0.00026892,2]
[314383765,1708252238389,-500.0,0.00026892,2]
[314383767,1708252238398,-500.0,0.00026892,2]
[314383769,1708252238408,-500.0,0.00026892,2]
[314383771,1708252238417,-500.0,0.00026892,2]
[314383773,1708252238425,-500.0,0.00026892,2]
[314383775,1708252238435,-357.69753453,0.00026892,2]
[314383777,1708252238445,-500.0,0.00026892,2]
[314383779,1708252238455,-500.0,0.00026892,2]
[314383781,1708252238464,-206.36305903,0.00026892,2]
[314383783,1708252238473,-408.60082792,0.00026892,2]
[314383785,1708252238485,-500.0,0.00026892,2]
[314383787,1708252238494,-500.0,0.00026892,2]
[314383789,1708252238506,-500.0,0.00026892,2]
[314383791,1708252238515,-500.0,0.00026892,2]
[314383793,1708252238526,-481.24110373,0.00026892,2]
[314383795,1708252238535,-500.0,0.00026892,2]
[314383797,1708252238544,-500.0,0.00026892,2]
[314383799,1708252238553,-500.0,0.00026892,2]
[314383801,1708252238565,-500.0,0.00026892,2]
[314383803,1708252238573,-500.0,0.00026892,2]
[314383805,1708252238583,-500.0,0.00026892,2]
[314383807,1708252238592,-500.0,0.00026892,2]
[314383809,1708252238601,-385.0,0.00026892,2]
[314383811,1708252238611,-500.0,0.00026892,2]
[314383813,1708252238620,-218.33987352,0.00026892,2]
[314383815,1708252238629,-500.0,0.00026892,2]
[314383817,1708252238639,-500.0,0.00026892,2]
[314383819,1708252238648,-500.0,0.00026892,2]
[314383821,1708252238657,-500.0,0.00026892,2]
[314383823,1708252238667,-500.0,0.00026892,2]
[314383825,1708252238676,-500.0,0.00026892,2]
[314383827,1708252238685,-500.0,0.00026892,2]
[314383829,1708252238695,-500.0,0.00026892,2]
[314383831,1708252238704,-500.0,0.00026892,2]
[314383833,1708252238713,-500.0,0.00026892,2]